bitfinex-derivatives/quotes_ETHF0:USTF0_20250810
["timestamp","ask_amount","ask_price","bid_price","bid_amount"]
[1754849949671,2.00352,4229.5,4229.4,1.40208066]
[1754849950170,1.08742,4229.5,4229.4,2.28438066]
[1754849950369,1.08742,4229.5,4229.4,2.54778066]
[1754849950571,2.00352,4229.5,4229.4,2.54778066]
[1754849952965,0.75225444,4229.9,4229.5,1.5311]
[1754849952966,0.47282,4229.6,4229.5,1.5311]
[1754849953369,0.72822,4229.6,4229.5,1.5311]
[1754849953973,0.47282,4229.6,4229.5,1.5311]
[1754849954274,0.72822,4229.6,4229.5,1.5311]
[1754849955175,0.47282,4229.6,4229.5,1.5311]
[1754849955470,0.5198,4229.9,4229.5,0.6198]
[1754849955471,0.2554,4229.9,4229.5,0.6198]
[1754849955670,0.4728,4229.7,4229.6,1.5311]
[1754849956177,0.7282,4229.7,4229.6,1.5311]
[1754849956576,0.2554,4229.7,4229.6,1.5311]
[1754849958675,0.879,4229.7,4229.6,1.5311]
[1754849958873,1.5307,4229.7,4229.6,1.5311]
[1754849959071,1.5307,4229.7,4229.6,1.2677]
[1754849959877,0.47281,4229.6,4229.4,1.01668066]
[1754849960075,1.2663,4229.5,4229.4,1.46068066]
[1754849960281,1.5307,4229.5,4229.4,2.54778066]
[1754849960575,0.47281,4229.6,4229.5,1.5311]
[1754849960576,0.72821,4229.6,4229.5,1.5311]
[1754849960876,0.91471,4229.6,4229.5,1.5311]
[1754849961080,1.17911,4229.6,4229.5,1.5311]
[1754849961479,0.91471,4229.6,4229.5,1.5311]
[1754849962080,1.17911,4229.6,4229.5,1.5311]
[1754849962278,2.00351,4229.6,4229.5,1.5311]
[1754849962474,1.5307,4229.5,4229.4,1.01668066]
[1754849964275,1.5307,4229.5,4229.4,0.46126066]
[1754849964880,22.9717,4229.5,4229.4,0.46126066]
[1754849965178,22.9717,4229.5,4229.4,6.6e-07]
[1754849965877,22.9717,4229.5,4227.6,1.5311]
[1754849965878,0.72842,4227.7,4227.6,1.5311]
[1754849967179,1.35202,4227.7,4227.6,1.5311]
[1754849967379,2.00372,4227.7,4227.0,0.7356]
[1754849967577,2.00372,4227.7,4226.6,2.11289341]
[1754849967578,1.0859,4227.6,4227.5,0.4429]
[1754849967776,1.5307,4227.6,4227.5,1.0908]
[1754849967977,1.5307,4227.6,4227.5,1.2677]
[1754849968274,2.00373,4227.6,4227.5,1.2677]
[1754849968778,2.00373,4227.6,4227.5,1.0052]
[1754849968978,1.35203,4227.6,4227.5,1.5311]
[1754849969173,0.47302,4227.8,4226.9,1.93503444]
[1754849969379,0.47302,4227.8,4227.7,1.5311]
[1754849969579,2.00372,4227.8,4227.7,1.2677]
[1754849970079,0.47302,4227.8,4227.7,1.5311]
[1754849970374,0.473,4228.0,4227.7,1.09282]
[1754849970580,0.2554,4227.9,4227.8,1.5311]
[1754849971680,0.2554,4227.9,4227.8,1.5355726]
[1754849971979,0.2554,4227.9,4227.8,2.0085826]
[1754849972182,0.473,4228.0,4227.9,1.5311]
[1754849972880,0.7284,4228.0,4227.9,1.5311]
[1754849973084,0.9149,4228.0,4227.9,1.5311]
[1754849973580,1.352,4228.0,4227.9,1.5311]
[1754849974078,1.2586,4228.0,4227.9,1.5311]
[1754849974276,0.6146,4228.0,4227.9,1.5311]
[1754849974478,0.4419,4228.0,4227.9,1.5311]
[1754849976077,0.8966,4228.0,4227.9,1.5311]
[1754849977081,1.2854,4228.0,4227.9,1.5311]
[1754849978282,0.8966,4228.0,4227.9,1.5311]
[1754849979082,1.36959,4228.0,4227.9,1.5311]
[1754849979278,1.75839,4228.0,4227.9,1.5311]
[1754849979576,1.11665,4228.4,4227.9,0.2748]
[1754849979782,2.06005,4228.4,4228.3,1.3158]
[1754849979986,2.06005,4228.4,4228.3,1.5833]
[1754849980579,2.06005,4228.4,4228.3,1.3158]
[1754849983485,2.06005,4228.4,4228.3,1.1291]
[1754849983882,2.06005,4228.4,4228.3,1.3158]
[1754849988284,2.06005,4228.4,4228.3,0.4469]
[1754849988491,2.0601,4228.0,4227.9,1.3158]
[1754849989383,2.0601,4228.0,4227.9,0.4469]
[1754849989791,2.0601,4228.0,4227.9,0.8543]
[1754849993291,2.0601,4228.0,4227.9,1.1291]
[1754849994190,1.5871,4227.9,4227.8,0.0044726]
[1754849996087,1.5871,4227.9,4227.8,0.4118726]
[1754849996288,1.5871,4227.9,4227.8,0.0044726]
[1754849998095,1.5871,4226.8,4226.7,1.78893]
[1754849998397,1.5871,4226.8,4226.7,1.5833]
[1754849998991,0.9197,4226.8,4226.7,1.5833]
[1754849999397,0.6452,4226.8,4226.7,1.5833]
[1754849999590,0.465,4226.8,4226.7,1.5833]
[1754849999785,0.2801,4226.8,4226.7,1.5833]
[1754850000291,0.47311,4227.0,4226.3,2.11289341]
[1754850000292,0.47311,4226.9,4226.8,1.1293]
[1754850000596,0.2801,4226.9,4226.8,1.5833]
[1754850000996,0.47311,4227.0,4226.9,2.05641]
[1754850001189,1.78161,4227.0,4226.9,1.5833]
[1754850001389,2.06021,4227.0,4226.9,1.5833]
[1754850001593,2.06021,4227.0,4226.9,1.3158]
[1754850002693,2.06021,4227.0,4226.9,1.5833]
[1754850002901,1.39281,4227.0,4226.9,2.05641]
[1754850003102,1.39281,4227.0,4226.9,1.5833]
[1754850003312,1.78161,4227.0,4226.9,1.5833]
[1754850003513,2.06021,4227.0,4226.9,1.5833]
[1754850003810,1.39281,4227.0,4226.9,1.5833]
[1754850004012,0.6452,4227.0,4226.9,1.5833]
[1754850004413,0.6452,4227.0,4226.9,2.05641]
[1754850004914,0.2801,4227.0,4226.9,2.05641]
[1754850005304,0.74758,4227.2,4227.1,2.05639]
[1754850005305,0.75318,4227.2,4227.1,2.05639]
[1754850005504,0.2801,4227.2,4227.1,2.05639]
[1754850005907,21.449,4227.3,4227.1,2.05639]
[1754850006109,21.449,4227.3,4227.1,1.10669]
[1754850006305,21.7142,4227.3,4227.2,1.5453]
[1754850006706,0.2652,4227.3,4227.2,1.5453]
[1754850007306,0.2616,4227.6,4227.2,1.5453]
[1754850007511,21.451,4227.8,4227.7,1.5453]
[1754850007712,22.35772,4227.8,4227.7,1.5453]
[1754850008014,23.18102,4227.8,4227.7,1.5453]
[1754850008719,22.79412,4227.8,4227.7,1.5453]
[1754850009607,0.8701,4228.1,4228.0,1.2741]
[1754850009910,23.45138,4228.1,4228.0,1.1045]
[1754850010216,23.45138,4228.1,4228.0,1.2741]
[1754850012818,23.45138,4228.1,4228.0,1.5453]
[1754850013318,23.45138,4228.1,4228.0,1.2741]
[1754850013918,23.45138,4228.1,4228.0,1.5453]
[1754850014120,0.6085,4228.1,4228.0,1.5453]
[1754850014319,22.0585,4228.1,4228.0,1.5453]
[1754850014914,21.45,4228.1,4228.0,1.5453]
[1754850015119,0.2652,4228.1,4228.0,1.5453]
[1754850016525,1.5274,4228.1,4228.0,1.5453]
[1754850018820,1.5274,4228.1,4228.0,1.2741]
[1754850019918,22.9754,4228.1,4228.0,1.2741]
[1754850029322,1.5274,4228.1,4228.0,1.2741]
[1754850029523,22.9744,4228.1,4228.0,1.2741]
[1754850030020,22.9744,4228.1,4228.0,0.8477]
[1754850030823,22.9744,4228.1,4228.0,1.1045]
[1754850031821,22.9744,4228.1,4228.0,1.2741]
[1754850036133,1.273,4227.4,4227.3,1.3196]
[1754850036423,1.273,4227.4,4227.3,1.5857]
[1754850036628,1.273,4227.4,4227.3,2.05876]
[1754850037030,0.8906,4227.4,4227.3,2.05876]
[1754850038827,0.6181,4227.4,4227.3,2.05876]
[1754850039031,1.273,4227.4,4227.3,2.05876]
[1754850041034,0.8906,4227.4,4227.3,2.05876]
[1754850041334,0.2543,4227.4,4227.3,2.05876]
[1754850042937,0.6363,4228.0,4227.9,1.1076]
[1754850043140,1.273,4228.0,4227.9,2.0587]
[1754850043340,1.5288,4228.0,4227.9,2.0587]
[1754850045436,1.5288,4228.0,4227.9,1.7926]
[1754850045827,1.5288,4228.0,4227.9,1.3196]
[1754850052541,21.91798,4228.1,4227.1,2.56159341]
[1754850052542,1.2745,4227.2,4227.1,2.56159341]
[1754850052737,1.5288,4227.2,4227.1,1.1337]
[1754850052938,2.00192,4226.8,4226.7,1.0517]
[1754850053236,2.00192,4226.8,4226.7,0.2721]
[1754850053643,2.00192,4226.8,4226.7,0.8658]
[1754850053839,2.00192,4226.8,4226.7,1.3196]
[1754850054344,1.5288,4226.8,4226.7,1.3196]
[1754850057137,1.5288,4226.8,4226.7,1.79273]
[1754850059538,2.00192,4226.8,4226.7,1.79273]
[1754850060549,2.00192,4226.8,4226.7,1.3196]
[1754850060941,0.47319,4226.3,4226.2,0.4171]
[1754850061151,2.00199,4226.3,4226.2,0.4487]
[1754850061350,2.00199,4226.3,4226.2,1.1337]
[1754850061650,2.00199,4226.3,4225.2,1.18324]
[1754850061651,1.5288,4225.7,4225.6,1.79285]
[1754850062047,2.00204,4225.7,4225.6,1.3196]
[1754850062344,21.446,4226.0,4225.7,0.47324]
[1754850062345,0.2725,4225.8,4225.7,0.47324]
[1754850062550,2.00203,4225.8,4225.7,1.79284]
[1754850062756,2.00203,4225.8,4225.7,1.3196]
[1754850063451,2.00203,4225.8,4225.7,1.1337]
[1754850063842,1.5288,4225.8,4225.7,1.1337]
[1754850064446,1.5288,4225.8,4225.7,1.79284]
[1754850065051,1.5288,4225.8,4225.7,1.3196]
[1754850065952,1.5288,4225.8,4225.7,1.5987]
[1754850068251,0.4435,4226.1,4225.8,0.9493]
[1754850068449,21.89,4226.1,4226.0,0.6107]
[1754850068650,0.1818,4226.1,4226.0,1.56]
[1754850068949,1.2649,4226.1,4226.0,1.56]
[1754850069156,1.5416,4226.1,4226.0,1.2809]
[1754850069556,1.5416,4226.1,4226.0,1.56]
[1754850069851,0.6186,4226.1,4226.0,0.4248]
[1754850070048,1.5416,4226.1,4226.0,1.095]
[1754850070357,1.5416,4225.9,4225.8,1.75413]
[1754850070552,1.2649,4225.9,4225.8,2.03323]
[1754850070751,1.7381,4226.1,4226.0,1.56]
[1754850071148,2.0148,4226.1,4226.0,1.2809]
[1754850071554,2.0148,4226.1,4226.0,1.095]
[1754850072157,2.0148,4226.1,4226.0,1.2809]
[1754850074354,22.3667,4226.1,4226.0,1.56]
[1754850074558,0.2617,4226.8,4226.2,0.1715]
[1754850074757,23.46473,4226.7,4226.6,1.2809]
[1754850075560,23.46473,4226.7,4226.6,0.8279]
[1754850076257,23.46473,4226.7,4226.6,1.095]
[1754850081765,23.46473,4226.7,4226.6,1.2809]
[1754850082363,0.47322,4225.9,4225.8,0.8279]
[1754850082572,2.01482,4225.9,4225.8,1.2809]
[1754850086665,2.01482,4225.9,4225.8,1.56]
[1754850089569,2.01482,4225.9,4225.8,1.2809]
[1754850090271,2.01482,4225.9,4225.8,1.56]
[1754850091276,2.01482,4225.9,4225.8,1.2809]
[1754850091772,2.01482,4225.9,4225.8,0.8279]
[1754850091960,2.01482,4225.9,4225.8,1.2809]
[1754850092767,2.01482,4225.9,4225.8,1.56]
[1754850092962,23.46482,4225.9,4225.8,1.2809]
[1754850094968,23.46582,4225.9,4225.8,1.2809]
[1754850096571,22.54282,4225.9,4225.8,1.2809]
[1754850096865,23.23102,4225.9,4225.8,1.5366]
[1754850097572,0.47322,4225.9,4225.8,1.5366]
[1754850098579,0.47321,4226.0,4225.8,1.5366]
[1754850098779,0.47321,4226.0,4225.9,1.5588]
[1754850099277,0.74281,4226.0,4225.9,1.5588]
[1754850099484,0.91231,4226.0,4225.9,1.5588]
[1754850099686,1.18371,4226.0,4225.9,1.5588]
[1754850100278,1.78721,4226.0,4225.9,1.5588]
[1754850100679,2.06381,4226.0,4225.9,1.5588]
[1754850102683,1.37041,4226.0,4225.9,1.5588]
[1754850103083,0.8972,4226.0,4225.9,1.5588]
[1754850104584,1.5906,4226.0,4225.9,1.5588]
[1754850105688,1.52286,4225.6,4225.5,1.3031]
[1754850106291,2.06386,4225.6,4225.5,1.3031]
[1754850106678,1.3192,4225.5,4225.4,1.01764309]
[1754850106881,23.0406,4225.5,4225.4,1.01764309]
[1754850107381,23.0406,4225.5,4225.4,2.32074309]
[1754850109282,23.0406,4225.5,4225.4,2.14694309]
[1754850109482,23.0406,4225.5,4225.4,1.87354309]
[1754850109782,23.0406,4225.5,4225.4,1.01764309]
[1754850114491,23.0406,4225.5,4225.4,1.43574309]
[1754850114692,1.5906,4225.5,4225.4,2.14694309]
[1754850114891,23.0426,4225.5,4225.4,2.32074309]
[1754850116589,1.5906,4225.5,4225.4,2.57644309]
[1754850116787,23.0426,4225.5,4225.4,2.57644309]
[1754850118095,22.03668869,4225.5,4225.4,2.57644309]
[1754850118394,22.30808869,4225.5,4225.4,2.57644309]
[1754850118583,22.72488869,4225.5,4225.4,2.57644309]
[1754850118788,22.91158869,4225.5,4225.4,2.57644309]
[1754850119693,23.18818869,4225.5,4225.4,2.57644309]
[1754850121096,23.18818221,4225.5,4225.4,2.57644309]
[1754850121292,23.18818221,4225.5,4225.4,2.32074309]
[1754850122496,23.18818221,4225.5,4225.4,2.57644309]
[1754850123191,23.18818221,4225.5,4225.4,2.32074309]
[1754850124202,23.94043665,4225.5,4225.4,1.01764309]
[1754850124700,23.9404194,4225.5,4225.4,1.01764309]
[1754850125195,23.9404194,4225.5,4225.4,2.14694309]
[1754850125885,23.9404194,4225.5,4225.4,1.01764309]
[1754850126091,2.02304,4224.8,4224.7,1.2829]
[1754850126589,2.16860496,4224.8,4224.7,1.2829]
[1754850126995,2.16860496,4224.8,4224.7,1.5403]
[1754850127998,1.89850496,4224.8,4224.7,1.5403]
[1754850128192,1.50010496,4224.8,4224.7,1.5403]
[1754850128398,1.22700496,4224.8,4224.7,1.5403]
[1754850128587,1.05120496,4224.8,4224.7,1.5403]
[1754850128997,1.50010496,4224.8,4224.7,1.5403]
[1754850129196,1.89850496,4224.8,4224.7,1.5403]
[1754850129399,2.16860496,4224.8,4224.7,1.5403]
[1754850130689,2.16860496,4224.8,4224.2,0.6299]
[1754850130690,0.6492,4224.3,4224.2,0.6299]
[1754850130888,1.753,4224.3,4224.2,0.8873]
[1754850131089,0.47344,4223.9,4223.6,2.11289341]
[1754850131295,0.73024,4223.9,4223.8,1.5403]
[1754850131494,0.2568,4223.9,4223.8,1.5403]
[1754850133900,0.1755,4224.3,4224.2,1.0194]
[1754850134104,0.6244,4224.3,4224.2,1.5403]
[1754850134297,1.2796,4224.3,4224.2,1.5403]
[1754850135405,1.5497,4224.3,4224.2,1.2829]
[1754850135602,0.2568,4224.3,4223.5,2.11289341]
[1754850135797,0.8812,4223.7,4223.6,1.5403]
[1754850136206,1.35466,4223.7,4223.6,1.5403]
[1754850136502,1.08156,4223.7,4223.6,1.2829]
[1754850136702,2.02316,4223.7,4223.6,1.5403]
[1754850144306,2.02316,4223.7,4223.6,0.6701]
[1754850144606,1.09489,4223.5,4223.4,0.9336]
[1754850144808,2.02319,4223.5,4223.4,0.9336]
[1754850145315,0.8782,4223.3,4223.2,0.4609]
[1754850145612,1.35171,4223.3,4223.2,1.1139]
[1754850145808,2.02321,4223.3,4223.2,1.1139]
[1754850146516,2.02323,4223.1,4223.0,1.1139]
[1754850146814,2.02323,4223.1,4223.0,1.2829]
[1754850149014,2.02323,4223.1,4222.0,0.6299]
[1754850149015,0.2568,4223.0,4222.0,0.6299]
[1754850149207,1.62484,4223.0,4222.9,0.4609]
[1754850149512,1.09498,4222.7,4222.6,1.2829]
[1754850149712,2.02328,4222.7,4222.6,1.2829]
[1754850150108,1.35478,4222.7,4222.6,1.2829]
[1754850150312,0.3984,4223.2,4222.7,0.3895]
[1754850150516,1.08163,4223.1,4223.0,0.6299]
[1754850150717,0.4323,4223.1,4223.0,1.5403]
[1754850151011,0.6715,4223.4,4223.0,2.01384]
[1754850151217,0.4323,4223.4,4223.3,1.5403]
[1754850153415,0.8812,4223.4,4223.3,1.5403]
[1754850154220,1.2796,4223.4,4223.3,1.5403]
[1754850155811,0.8812,4223.4,4223.3,1.5403]
[1754850156415,1.2665,4223.4,4223.3,1.5403]
[1754850158221,0.2608,4223.9,4223.7,0.47346]
[1754850158417,0.4378,4223.9,4223.8,0.82254]
[1754850158616,1.2571,4223.9,4223.8,2.06864]
[1754850158814,0.8718,4223.9,4223.8,2.06864]
[1754850159411,1.1426,4224.1,4224.0,1.51983]
[1754850159619,2.00132,4224.1,4224.0,1.3184]
[1754850161116,1.5279,4224.1,4224.0,1.3184]
[1754850161311,1.5279,4224.1,4224.0,1.5952]
[1754850163919,1.5279,4224.1,4223.2,1.18378]
[1754850164117,0.6221,4223.9,4223.8,0.47344]
[1754850164318,1.5279,4223.9,4223.8,0.47344]
[1754850164519,1.5279,4223.9,4223.8,1.44274]
[1754850164827,1.5279,4223.9,4223.8,1.62234]
[1754850165318,1.5279,4223.9,4223.8,1.35034]
[1754850165525,1.5279,4223.7,4223.6,0.2778]
[1754850165827,1.0956,4223.4,4223.3,1.7919]
[1754850166023,2.0014,4223.4,4223.3,1.7919]
[1754850166729,2.0014,4223.4,4223.3,1.3184]
[1754850167425,2.0014,4223.4,4223.3,0.2778]
[1754850168127,2.0014,4223.4,4223.3,0.6973]
[1754850168324,1.93588444,4223.9,4222.6,2.66269341]
[1754850168325,0.2708,4222.7,4222.6,2.66269341]
[1754850168528,0.2708,4222.7,4222.6,1.3184]
[1754850168529,1.2671,4222.7,4222.6,1.3184]
[1754850168829,1.5279,4222.7,4222.6,1.3184]
[1754850169027,1.0074,4222.1,4222.0,2.11289341]
[1754850169331,1.5279,4221.9,4221.8,1.34047]
[1754850169630,1.5279,4221.9,4221.8,1.79207]
[1754850169830,1.5279,4221.9,4221.8,2.06887]
[1754850171330,1.5279,4221.9,4221.8,1.3184]
[1754850171531,1.5279,4221.9,4221.8,1.79208]
[1754850172129,1.5279,4221.9,4221.8,1.3184]
[1754850175435,1.5279,4221.9,4221.8,1.5952]
[1754850179642,1.2571,4221.9,4221.8,1.5952]
[1754850181343,1.1426,4221.6,4221.5,0.47371]
[1754850181645,0.8718,4221.6,4221.5,1.64941]
[1754850181844,0.8718,4221.6,4221.5,2.06891]
[1754850182546,1.2571,4221.6,4221.5,2.06891]
[1754850182841,1.5279,4221.6,4221.5,0.9037]
[1754850183241,1.5279,4221.6,4221.5,0.8989]
[1754850183442,1.5279,4221.6,4221.5,0.1796]
[1754850183641,0.75225444,4221.8,4221.4,1.01860735]
[1754850183642,2.00161,4221.5,4221.4,1.01860735]
[1754850183850,2.00161,4221.5,4221.4,1.43810735]
[1754850184442,2.00161,4221.5,4221.4,1.71590735]
[1754850184643,2.00161,4221.5,4221.4,1.01860735]
[1754850186845,2.01631,4221.5,4221.4,2.59890735]
[1754850187044,2.01631,4221.5,4221.4,2.33750735]
[1754850197156,2.01631,4221.5,4221.4,1.29490735]
[1754850197556,2.01631,4221.5,4221.4,1.97220735]
[1754850197753,2.01631,4221.5,4221.4,1.01860735]
[1754850198361,2.01631,4221.5,4221.4,1.70690735]
[1754850198561,2.01631,4221.5,4221.4,2.15410735]
[1754850199559,2.01631,4221.5,4221.4,1.70690735]
[1754850199757,2.01631,4221.5,4221.4,1.97220735]
[1754850199963,2.01631,4221.5,4221.4,2.33750735]
[1754850204661,2.01631,4221.5,4221.4,7.35e-06]
[1754850204662,2.76856444,4221.5,4221.4,7.35e-06]
[1754850206264,2.76856444,4221.5,4219.9,0.47388]
[1754850206265,0.47389,4220.0,4219.9,1.5803]
[1754850206465,0.92609,4220.0,4219.9,1.5803]
[1754850206662,1.76989,4220.0,4219.9,1.5803]
[1754850206862,0.47392,4219.7,4219.6,0.9387]
[1754850207062,0.47392,4219.7,4219.6,1.5803]
[1754850208364,0.74992,4219.7,4219.6,1.5803]
[1754850208965,0.276,4219.7,4219.6,1.5803]
[1754850209164,0.4739,4219.8,4219.6,0.2763]
[1754850209467,1.164,4221.1,4221.0,0.6416]
[1754850209673,1.164,4221.1,4221.0,1.1683]
[1754850209967,0.47375,4221.2,4220.2,1.18463]
[1754850209968,0.1762,4221.2,4221.1,1.304]
[1754850210270,1.164,4221.2,4221.1,1.3189]
[1754850210871,0.6201,4220.9,4220.8,1.3189]
[1754850211071,1.164,4220.9,4220.8,1.3189]
[1754850211461,1.564,4220.9,4220.8,1.3189]
[1754850211669,1.564,4220.9,4220.8,1.5803]
[1754850211869,2.03778,4220.9,4220.8,1.5803]
[1754850212174,1.564,4220.9,4220.8,1.5803]
[1754850213172,0.89077248,4220.9,4220.8,1.5803]
[1754850213472,0.2679,4221.2,4220.8,1.1206]
[1754850213666,0.2679,4221.2,4220.2,1.18465]
[1754850213667,1.36983,4221.3,4221.2,0.6416]
[1754850213867,2.03773,4221.3,4221.2,1.3189]
[1754850214166,2.03773,4221.3,4221.2,1.5803]
[1754850214467,2.03773,4221.3,4221.2,1.3189]
[1754850214671,1.564,4221.3,4221.2,1.5803]
[1754850214967,1.564,4221.3,4221.2,1.79265]
[1754850214968,0.668,4221.3,4221.2,1.79265]
[1754850215174,0.276,4221.3,4221.2,0.6416]
[1754850215373,0.4522,4221.3,4221.2,0.6416]
[1754850215769,0.4522,4221.3,4221.2,1.5599]
[1754850217577,0.5457,4221.6,4221.5,1.10111]
[1754850217776,0.5457,4221.6,4221.5,2.01941]
[1754850217976,0.727,4221.6,4221.5,2.01941]
[1754850218475,1.3886,4221.6,4221.5,2.01941]
[1754850218675,1.575,4221.6,4221.5,2.01941]
[1754850219875,0.9134,4221.8,4221.7,1.5457]
[1754850220069,0.90137604,4222.4,4221.1,1.1844]
[1754850220070,0.3904,4222.5,4221.8,0.6405]
[1754850220276,1.4968,4222.5,4222.4,0.6274]
[1754850220476,1.4968,4222.5,4222.4,1.2679]
[1754850220872,2.0486,4222.5,4222.4,1.5457]
[1754850223577,0.47359,4222.6,4222.5,0.2778]
[1754850223781,0.75419,4222.6,4222.5,1.5457]
[1754850224077,1.9170616,4223.1,4223.0,1.2679]
[1754850224284,1.76794,4223.1,4223.0,1.2679]
[1754850224575,2.04854,4223.1,4223.0,1.2679]
[1754850225681,2.80079444,4223.1,4223.0,1.2679]
[1754850226775,2.80079444,4223.1,4221.5,1.18426]
[1754850226776,0.3904,4221.9,4221.3,0.4515]
[1754850227083,1.18415,4222.0,4221.4,1.2679]
[1754850227084,2.04872,4221.5,4221.4,1.2679]
[1754850227277,2.04872,4221.5,4221.4,0.4515]
[1754850227974,2.04872,4221.5,4219.0,2.371]
[1754850227975,0.1813,4220.7,4220.6,1.2679]
[1754850228181,0.4619,4220.7,4220.6,1.5457]
[1754850228774,0.4619,4220.7,4220.6,2.01951]
[1754850229183,0.74498,4220.9,4220.6,1.10121]
[1754850229385,0.75438,4220.9,4220.8,1.5457]
[1754850229586,0.93568,4220.9,4220.8,1.5457]
[1754850231476,2.04878,4220.9,4220.8,1.5457]
[1754850232081,0.93568,4220.9,4220.8,1.5457]
[1754850233481,1.20688,4220.9,4220.8,1.5457]
[1754850233683,1.78368,4220.9,4220.8,1.5457]
[1754850233886,0.75438,4220.9,4220.8,1.5457]
[1754850234588,0.93568,4220.9,4220.8,1.5457]
[1754850235085,1.38718,4220.9,4220.8,1.5457]
[1754850235285,2.04878,4220.9,4220.8,1.2679]
[1754850236291,2.04878,4220.9,4220.8,0.4515]
[1754850236483,2.04878,4220.9,4220.8,0.2694]
[1754850237785,0.47381,4220.6,4220.5,0.6405]
[1754850237986,2.04887,4220.1,4220.0,1.2679]
[1754850238382,0.2806,4219.9,4219.4,0.6274]
[1754850238589,0.1813,4219.6,4219.5,1.5457]
[1754850238789,0.4619,4219.6,4219.5,1.5457]
[1754850240297,0.2806,4219.8,4219.7,0.6274]
[1754850240497,1.575,4219.8,4219.7,1.5457]
[1754850241499,0.9134,4219.8,4219.7,1.5457]
[1754850241901,0.4619,4219.8,4219.7,1.5457]
[1754850242192,0.4739,4219.8,4219.5,0.47393]
[1754850242391,0.2806,4220.2,4219.7,0.47391]
[1754850242596,2.04886,4220.2,4220.1,0.6274]
[1754850242799,2.04886,4220.2,4220.1,1.2679]
[1754850243900,2.04886,4220.2,4220.1,1.5457]
[1754850244292,2.04886,4220.2,4220.1,1.2679]
[1754850245195,2.04886,4220.2,4219.9,0.47389]
[1754850245196,0.6328,4220.5,4220.4,1.2679]
[1754850245498,0.6328,4220.5,4220.4,1.5457]
[1754850245696,0.8884,4220.5,4220.4,1.5457]
[1754850245898,0.4341,4220.7,4220.6,1.57221]
[1754850246099,0.4341,4220.7,4220.6,2.01651]
[1754850246497,0.5347,4221.6,4220.7,0.9136]
[1754850246801,0.47374,4221.2,4220.3,3.11729401]
[1754850246989,1.295,4221.1,4221.0,0.6291]
[1754850247195,1.5506,4221.1,4221.0,1.10287]
[1754850247501,1.5506,4221.1,4221.0,1.5427]
[1754850248295,0.9387,4220.7,4219.2,1.82152]
[1754850248491,1.5506,4219.8,4219.7,1.73961]
[1754850249005,1.5506,4219.8,4219.7,2.01661]
[1754850253106,1.5506,4220.3,4220.2,1.73956]
[1754850253898,0.47383,4220.5,4220.2,1.73956]
[1754850253899,0.4341,4220.7,4220.6,0.4738]
[1754850254102,1.5506,4221.1,4221.0,1.2657]
[1754850254301,1.5506,4221.1,4221.0,1.5427]
[1754850254702,0.8675,4221.1,4221.0,1.5427]
[1754850255901,1.5506,4221.1,4221.0,1.2657]
[1754850256610,1.5506,4221.1,4221.0,1.5427]
[1754850261409,1.5506,4221.1,4221.0,1.2657]
[1754850265413,0.74625341,4222.1,4220.6,1.18453]
[1754850265604,0.6119,4221.2,4221.1,0.6291]
[1754850265912,1.5506,4221.2,4221.1,1.2657]
[1754850270515,0.6119,4220.7,4220.6,0.6291]
[1754850270709,2.02441,4220.7,4220.5,0.6366]
[1754850270911,1.5506,4220.6,4220.5,0.6366]
[1754850272314,1.5506,4220.6,4220.5,1.0809]
[1754850272515,1.5506,4220.6,4220.5,1.2657]
[1754850273718,1.5506,4220.6,4220.5,1.5427]
[1754850274717,0.8675,4220.6,4220.5,1.5427]
[1754850276118,0.6558,4221.8,4221.2,1.11223]
[1754850276418,1.5304,4221.3,4221.2,2.03843]
[1754850277111,1.5304,4221.3,4221.2,1.5647]
[1754850277512,0.60025963,4222.3,4221.6,0.47369]
[1754850277513,0.2662,4221.8,4221.6,0.47369]
[1754850277718,1.5304,4221.7,4221.6,2.03839]
[1754850278520,1.5304,4221.7,4221.6,1.5647]
[1754850282922,0.89854,4222.2,4222.1,0.6385]
[1754850283223,1.08204,4222.2,4222.1,0.2721]
[1754850283416,1.73374,4222.2,4222.1,0.2721]
[1754850283721,2.00404,4222.2,4222.1,0.2721]
[1754850284115,1.5304,4222.2,4222.1,0.9196]
[1754850284420,1.5304,4222.2,4222.1,1.0999]
[1754850284721,1.5304,4222.2,4222.1,1.286]
[1754850284915,1.5304,4222.2,4222.1,1.5647]
[1754850284916,1.1055,4222.2,4222.1,1.5647]
[1754850285121,1.5304,4222.2,4222.1,1.5647]
[1754850285316,1.5304,4222.2,4222.1,1.286]
[1754850285622,0.6084,4221.9,4221.7,0.47368]
[1754850285823,1.5304,4221.8,4221.7,0.47368]
[1754850286322,1.5304,4221.8,4221.7,1.57358]
[1754850286522,1.5304,4221.8,4221.7,1.75968]
[1754850291428,0.6084,4221.2,4221.1,3.37476]
[1754850291625,1.5304,4221.2,4221.0,0.47376]
[1754850291824,1.5304,4221.1,4221.0,0.6475]
[1754850292024,1.5304,4220.8,4220.7,1.0999]
[1754850292227,1.5304,4220.8,4220.5,0.2787]
[1754850292228,0.6084,4220.6,4220.5,1.0999]
[1754850292422,2.00422,4220.6,4220.5,1.0999]
[1754850293225,2.00422,4220.6,4220.5,1.286]
[1754850293732,1.5304,4220.6,4220.5,1.286]
[1754850295123,1.5304,4220.6,4220.5,0.4524]
[1754850295327,1.5304,4220.6,4220.5,1.286]
[1754850296137,0.922,4221.3,4220.0,0.9262]
[1754850296434,0.4497,4220.5,4220.4,1.77223]
[1754850296737,1.08217,4221.0,4220.9,1.286]